bitfinex-derivatives/quotes_BTCF0:USTF0_20260106
["timestamp","ask_amount","ask_price","bid_price","bid_amount"]
[1767725570431,0.11132487,92227.0,92206.0,0.04647561]
[1767725570635,0.11132487,92227.0,92209.0,0.04647561]
[1767725570845,0.01908487,92227.0,92209.0,0.04647561]
[1767725571041,0.09376001,92239.0,92209.0,0.04647561]
[1767725571251,0.09376001,92237.0,92215.0,0.010849]
[1767725572249,0.09376001,92237.0,92217.0,0.010848]
[1767725572250,0.010846,92236.0,92217.0,0.010848]
[1767725572448,0.11760673,92266.0,92235.0,0.04647561]
[1767725572640,0.11760673,92266.0,92241.0,0.098945]
[1767725572944,0.02394049,92266.0,92250.0,0.010844]
[1767725573344,0.04275671,92266.0,92252.0,0.010844]
[1767725573647,0.01881622,92266.0,92245.0,0.09228]
[1767725573845,0.03478249,92272.0,92251.0,0.010844]
[1767725574048,0.1254526,92271.0,92248.0,0.010845]
[1767725574249,0.14448288,92271.0,92248.0,0.010845]
[1767725574443,0.1254526,92266.0,92245.0,0.103125]
[1767725574747,0.1254526,92265.0,92248.0,0.010845]
[1767725574950,0.02861855,92264.0,92245.0,0.09228]
[1767725575748,0.010842,92269.0,92248.0,0.010845]
[1767725576144,0.03898821,92269.0,92248.0,0.010845]
[1767725576346,0.12190622,92266.0,92245.0,0.103125]
[1767725576542,0.12190622,92263.0,92244.0,0.010845]
[1767725577452,0.12190622,92263.0,92241.0,0.09224]
[1767725577654,0.010842,92268.0,92241.0,0.18766914]
[1767725577953,0.03806132,92268.0,92241.0,0.18766914]
[1767725578145,0.13040532,92268.0,92244.0,0.010845]
[1767725578346,0.010843,92266.0,92244.0,0.010845]
[1767725578545,0.02721932,92267.0,92241.0,0.18766914]
[1767725578755,0.02721932,92267.0,92250.0,0.010844]
[1767725578948,0.11956332,92267.0,92247.0,0.010845]
[1767725581644,0.010843,92266.0,92244.0,0.09542914]
[1767725581857,0.02502287,92265.0,92244.0,0.09542914]
[1767725582555,0.02502287,92265.0,92245.0,0.010845]
[1767725582752,0.02450862,92253.0,92235.0,0.010846]
[1767725582953,0.02450862,92253.0,92237.0,0.010846]
[1767725583458,0.1018515,92253.0,92232.0,0.010847]
[1767725583663,0.1018515,92253.0,92218.0,0.010848]
[1767725583664,0.02404995,92245.0,92227.0,0.09224]
[1767725584657,0.02404995,92245.0,92230.0,0.010847]
[1767725585169,0.02404995,92245.0,92227.0,0.09224]
[1767725585561,0.09224,92249.0,92228.0,0.09292463]
[1767725585760,0.09224,92265.0,92248.0,0.010845]
[1767725586370,0.09224,92265.0,92241.0,0.18516463]
[1767725586570,0.09224,92265.0,92242.0,0.09292463]
[1767725587065,0.09224,92265.0,92252.0,0.010844]
[1767725587267,0.09224,92265.0,92249.0,0.010845]
[1767725587864,0.09224,92265.0,92245.0,0.09292463]
[1767725588065,0.09224,92265.0,92247.0,0.09292463]
[1767725588261,0.02194588,92263.0,92239.0,0.09292463]
[1767725588573,0.010843,92262.0,92242.0,0.010845]
[1767725589166,0.010844,92256.0,92241.0,0.09224]
[1767725589470,0.03117637,92259.0,92239.0,0.010846]
[1767725590267,0.0910075,92260.0,92241.0,0.010846]
[1767725590466,0.010843,92262.0,92243.0,0.010845]
[1767725590673,0.12297159,92265.0,92240.0,0.09292463]
[1767725591175,0.01940734,92264.0,92240.0,0.10377063]
[1767725591374,0.010843,92260.0,92240.0,0.10377063]
[1767725593073,0.0910075,92263.0,92240.0,0.06692463]
[1767725593277,0.010844,92251.0,92232.0,0.010847]
[1767725593575,0.12039663,92254.0,92234.0,0.010846]
[1767725593871,0.010844,92250.0,92231.0,0.010847]
[1767725594074,0.20179263,92254.0,92226.0,0.18111128]
[1767725594075,0.010845,92249.0,92226.0,0.1203]
[1767725594266,0.010844,92250.0,92230.0,0.010847]
[1767725594467,0.10995858,92251.0,92232.0,0.010847]
[1767725594774,0.12080258,92251.0,92232.0,0.010847]
[1767725595077,0.09224,92254.0,92227.0,0.010847]
[1767725595078,0.010845,92246.0,92227.0,0.010847]
[1767725595266,0.01805503,92247.0,92229.0,0.010847]
[1767725595868,0.0910075,92248.0,92229.0,0.010847]
[1767725596267,0.010845,92247.0,92227.0,0.010847]
[1767725597078,0.010845,92245.0,92226.0,0.09224]
[1767725597275,0.010845,92245.0,92227.0,0.09292463]
[1767725597580,0.01698832,92248.0,92227.0,0.09292463]
[1767725597877,0.010845,92244.0,92227.0,0.09292463]
[1767725598078,0.010845,92247.0,92227.0,0.09292463]
[1767725598579,0.010845,92247.0,92227.0,0.10377163]
[1767725598778,0.01698832,92248.0,92229.0,0.010847]
[1767725598979,0.10810468,92254.0,92230.0,0.09292463]
[1767725599169,0.09224,92254.0,92238.0,0.010846]
[1767725599364,0.09224,92254.0,92238.0,0.09292463]
[1767725599565,0.09224,92254.0,92239.0,0.010846]
[1767725600069,0.010843,92264.0,92243.0,0.10376963]
[1767725600270,0.010843,92262.0,92243.0,0.09292463]
[1767725600865,0.010843,92262.0,92243.0,0.08692463]
[1767725601071,0.01462644,92264.0,92243.0,0.08692463]
[1767725601471,0.010843,92264.0,92243.0,0.04870805]
[1767725601677,0.010843,92264.0,92239.0,0.09224]
[1767725601678,0.02523667,92264.0,92239.0,0.103086]
[1767725601876,0.01439367,92263.0,92239.0,0.103086]
[1767725602078,0.010843,92262.0,92239.0,0.103086]
[1767725602884,0.010843,92262.0,92239.0,0.19601063]
[1767725603085,0.010843,92262.0,92240.0,0.09292463]
[1767725603877,0.010843,92260.0,92240.0,0.09292463]
[1767725604685,0.02523667,92263.0,92240.0,0.09292463]
[1767725605391,0.010842,92270.0,92248.0,0.14163268]
[1767725605979,0.010842,92268.0,92248.0,0.14163268]
[1767725606186,0.010842,92268.0,92248.0,0.09292463]
[1767725608487,0.010842,92268.0,92248.0,0.08292463]
[1767725608685,0.01154947,92268.0,92243.0,0.04870805]
[1767725608886,0.01154947,92261.0,92237.0,0.04870805]
[1767725609189,0.01154947,92261.0,92238.0,0.103086]
[1767725609388,0.0910075,92262.0,92240.0,0.010846]
[1767725610675,0.10195342,92260.0,92232.0,0.09292463]
[1767725610882,0.010844,92255.0,92233.0,0.010846]
[1767725611181,0.10212197,92249.0,92225.0,0.09292463]
[1767725611381,0.11296697,92249.0,92227.0,0.09224]
[1767725611585,0.01053237,92247.0,92227.0,0.09224]
[1767725611892,0.10170842,92244.0,92220.0,0.13489084]
[1767725612088,0.10170842,92244.0,92220.0,0.04265084]
[1767725612285,0.010846,92235.0,92218.0,0.09188686]
[1767725612480,0.010846,92239.0,92218.0,0.18412686]
[1767725613093,0.10108648,92237.0,92216.0,0.09224]
[1767725613296,0.10108648,92237.0,92217.0,0.010848]
[1767725614386,0.11193248,92237.0,92216.0,0.09224]
[1767725614587,0.010846,92234.0,92216.0,0.09224]
[1767725614785,0.09997949,92232.0,92209.0,0.09188686]
[1767725615088,0.09997949,92231.0,92210.0,0.09224]
[1767725615293,0.010847,92229.0,92210.0,0.09224]
[1767725615791,0.00839702,92226.0,92202.0,0.09188686]
[1767725615997,0.00839702,92225.0,92202.0,0.18412686]
[1767725616294,0.00839702,92225.0,92202.0,0.18397686]
[1767725616701,0.010849,92210.0,92191.0,0.04265084]
[1767725616889,0.01085,92207.0,92189.0,0.09440947]
[1767725617797,0.09117605,92214.0,92182.0,0.09224]
[1767725617798,0.01085,92201.0,92182.0,0.09224]
[1767725618188,0.19126313,92206.0,92182.0,0.09224]
[1767725618189,0.01085,92204.0,92182.0,0.09224]
[1767725619890,0.19126313,92206.0,92183.0,0.010852]
[1767725621700,0.01085,92204.0,92182.0,0.09224]
[1767725622503,0.09117605,92243.0,92215.0,0.09188686]
[1767725622686,0.09228,92243.0,92222.0,0.09188686]
[1767725623001,0.09228,92243.0,92223.0,0.09188686]
[1767725623196,0.00734455,92257.0,92227.0,0.04265084]
[1767725623501,0.09228,92256.0,92232.0,0.09188686]
[1767725623694,0.09228,92256.0,92233.0,0.010846]
[1767725624200,0.010844,92256.0,92232.0,0.09188686]
[1767725624402,0.09228,92255.0,92232.0,0.09373386]
[1767725624793,0.010844,92256.0,92232.0,0.09373386]
[1767725624998,0.09228,92254.0,92232.0,0.09373386]
[1767725626204,0.103124,92254.0,92232.0,0.09373386]
[1767725626797,0.09228,92254.0,92234.0,0.010846]
[1767725627198,0.010844,92253.0,92232.0,0.08288686]
[1767725628401,0.09228,92254.0,92225.0,0.09188686]
[1767725628703,0.09228,92254.0,92224.0,0.04265084]
[1767725628704,0.09117605,92246.0,92226.0,0.09228]
[1767725628891,0.09117605,92246.0,92226.0,0.09011124]
[1767725629699,0.010845,92245.0,92226.0,0.09011124]
[1767725630009,0.09117605,92246.0,92222.0,0.09228]
[1767725630205,0.010845,92244.0,92222.0,0.103128]
[1767725630505,0.09228,92243.0,92222.0,0.103128]
[1767725630700,0.09228,92243.0,92222.0,0.09228]
[1767725630905,0.09514775,92242.0,92217.0,0.09188686]
[1767725631105,0.09117605,92235.0,92210.0,0.18416686]
[1767725631305,0.09117605,92235.0,92214.0,0.010849]
[1767725632104,0.010847,92227.0,92210.0,0.09188686]
[1767725632309,0.010847,92228.0,92208.0,0.13493084]
[1767725632605,0.010847,92228.0,92200.0,0.04265084]
[1767725632806,0.10202305,92228.0,92201.0,0.09228]
[1767725633101,0.10202305,92228.0,92206.0,0.01085]
[1767725633300,0.010847,92231.0,92204.0,0.04265084]
[1767725633499,0.09228,92233.0,92204.0,0.04265084]
[1767725633694,0.010848,92223.0,92203.0,0.09228]
[1767725633897,0.010848,92221.0,92198.0,0.04265084]
[1767725634098,0.09117605,92223.0,92202.0,0.01085]
[1767725634302,0.010847,92228.0,92204.0,0.01085]
[1767725634503,0.010847,92228.0,92206.0,0.01085]
[1767725634996,0.010847,92228.0,92206.0,0.10273686]
[1767725635204,0.010847,92229.0,92208.0,0.10273586]
[1767725635399,0.010847,92229.0,92210.0,0.09188686]
[1767725636311,0.09228,92233.0,92210.0,0.09188686]
[1767725636312,0.010847,92227.0,92210.0,0.09188686]
[1767725638814,0.09228,92233.0,92213.0,0.09631102]
[1767725639112,0.010847,92227.0,92213.0,0.13824034]
[1767725639903,0.010847,92227.0,92213.0,0.11624034]
[1767725640097,0.010847,92227.0,92213.0,0.07431102]
[1767725641308,0.09237017,92232.0,92207.0,0.04192932]
[1767725641509,0.10321717,92226.0,92206.0,0.09228]
[1767725641813,0.010848,92224.0,92206.0,0.09228]
[1767725642210,0.19549617,92233.0,92206.0,0.13082897]
[1767725642405,0.19549617,92233.0,92206.0,0.13812155]
[1767725642406,0.09702909,92232.0,92206.0,0.13812155]
[1767725642610,0.010848,92218.0,92196.0,0.14897255]
[1767725642806,0.010848,92218.0,92198.0,0.010851]
[1767725643006,0.010848,92221.0,92199.0,0.13812155]
[1767725643206,0.010848,92219.0,92199.0,0.13812155]
[1767725643413,0.010848,92219.0,92200.0,0.03854897]
[1767725643611,0.010848,92219.0,92200.0,0.13812155]
[1767725643911,0.09237017,92222.0,92202.0,0.01085]
[1767725644507,0.010847,92226.0,92208.0,0.03854897]
[1767725644912,0.010847,92229.0,92208.0,0.13812155]
[1767725645109,0.010847,92227.0,92209.0,0.03854897]
[1767725645912,0.010847,92227.0,92209.0,0.13812155]
[1767725647006,0.09228,92233.0,92209.0,0.13812155]
[1767725647717,0.010847,92226.0,92209.0,0.12112155]
[1767725649220,0.010848,92224.0,92209.0,0.12112155]
[1767725649617,0.010849,92216.0,92200.0,0.03854897]
[1767725649821,0.11649673,92224.0,92200.0,0.03854897]
[1767725650019,0.09237017,92224.0,92201.0,0.03854897]
[1767725650315,0.010848,92216.0,92202.0,0.03854897]
[1767725650620,0.010848,92218.0,92202.0,0.03854897]
[1767725650805,0.010848,92220.0,92202.0,0.03854897]
[1767725651206,0.010848,92220.0,92202.0,0.13812155]
[1767725651613,0.010848,92220.0,92203.0,0.03854897]
[1767725651925,0.010848,92218.0,92203.0,0.03854897]
[1767725652123,0.010848,92218.0,92202.0,0.00816851]
[1767725652824,0.010848,92220.0,92202.0,0.00816851]
[1767725653023,0.010848,92221.0,92202.0,0.01901851]
[1767725653424,0.010848,92219.0,92202.0,0.00816851]
[1767725654315,0.010848,92221.0,92202.0,0.04671748]
[1767725654925,0.09237017,92224.0,92202.0,0.03854897]
[1767725655120,0.010848,92219.0,92202.0,0.03854897]
[1767725655612,0.010848,92219.0,92198.0,0.010851]
[1767725655613,0.010848,92219.0,92200.0,0.09228]
[1767725655816,0.010848,92219.0,92188.0,0.1203]
[1767725655817,0.13200211,92209.0,92181.0,0.09957258]
[1767725656020,0.09237017,92204.0,92182.0,0.09228]
[1767725656216,0.09237017,92202.0,92182.0,0.09228]
[1767725656422,0.01085,92207.0,92184.0,0.03854897]
[1767725656726,0.01085,92207.0,92184.0,0.03171844]
[1767725656926,0.10322017,92207.0,92184.0,0.03171844]
[1767725657324,0.010851,92199.0,92179.0,0.09957258]
[1767725657630,0.10322117,92199.0,92179.0,0.09228]
[1767725658020,0.09237017,92199.0,92179.0,0.09228]
[1767725658825,0.09237017,92199.0,92177.0,0.09228]
[1767725659018,0.09237017,92199.0,92177.0,0.13082897]
[1767725659215,0.09237017,92199.0,92178.0,0.03854897]
[1767725659820,0.09237017,92199.0,92179.0,0.04940197]
[1767725660021,0.01085,92204.0,92179.0,0.03854897]
[1767725660330,0.09237017,92205.0,92183.0,0.03854897]
[1767725660534,0.10322017,92205.0,92183.0,0.03854897]
[1767725661629,0.10322017,92205.0,92177.0,0.09228]
[1767725661630,0.13200211,92248.0,92216.0,0.03854897]
[1767725661931,0.13200211,92248.0,92229.0,0.010847]
[1767725661932,0.09237017,92247.0,92229.0,0.010847]
[1767725662130,0.09237017,92247.0,92228.0,0.010847]
[1767725662531,0.09237017,92247.0,92225.0,0.010847]
[1767725662836,0.09237017,92247.0,92223.0,0.09228]
[1767725663024,0.010845,92242.0,92223.0,0.09228]
[1767725664123,0.09237017,92247.0,92223.0,0.09228]
[1767725664325,0.09237017,92247.0,92223.0,0.07728]
[1767725664531,0.09237017,92247.0,92225.0,0.010847]
[1767725664721,0.010845,92245.0,92222.0,0.14896955]
[1767725665231,0.010844,92251.0,92229.0,0.13812155]
[1767725665433,0.010844,92251.0,92229.0,0.13595279]
[1767725665629,0.10321417,92257.0,92233.0,0.11041858]
[1767725665824,0.09237017,92257.0,92233.0,0.20269858]
[1767725666221,0.010843,92262.0,92238.0,0.010846]
[1767725666422,0.09228,92266.0,92239.0,0.09957258]
[1767725666423,0.010843,92260.0,92239.0,0.09957258]
[1767725667226,0.09237017,92264.0,92239.0,0.09957258]
[1767725667432,0.010844,92259.0,92239.0,0.09957258]
[1767725667829,0.10321417,92255.0,92236.0,0.09228]
[1767725668037,0.10321417,92255.0,92235.0,0.09228]
[1767725668537,0.010844,92253.0,92235.0,0.09228]
[1767725668839,0.09237017,92251.0,92233.0,0.09228]
[1767725669042,0.010845,92250.0,92226.0,0.03854897]
[1767725669332,0.010845,92245.0,92224.0,0.09957258]
[1767725669534,0.09237017,92243.0,92217.0,0.11042058]
[1767725669733,0.10321517,92243.0,92219.0,0.010848]
[1767725670237,0.10321517,92243.0,92219.0,0.04939697]
[1767725670639,0.10321517,92243.0,92219.0,0.14896955]
[1767725671436,0.10321517,92243.0,92220.0,0.09228]
[1767725672239,0.09237017,92243.0,92220.0,0.07628]
[1767725674245,0.010846,92242.0,92219.0,0.13812155]
[1767725674540,0.010846,92238.0,92220.0,0.09228]
[1767725674747,0.010846,92238.0,92221.0,0.09228]
[1767725675545,0.010846,92238.0,92220.0,0.09228]
[1767725675747,0.010846,92238.0,92214.0,0.14352502]
[1767725675943,0.010846,92238.0,92215.0,0.09228]
[1767725676135,0.010846,92238.0,92215.0,0.13239939]
[1767725676635,0.010846,92238.0,92216.0,0.09228]
[1767725677341,0.13595742,92239.0,92215.0,0.04011939]
[1767725677639,0.09565138,92228.0,92201.0,0.04011939]
[1767725677944,0.10649938,92224.0,92201.0,0.10340663]
[1767725678243,0.19877938,92224.0,92201.0,0.10340663]
[1767725678746,0.18793138,92224.0,92203.0,0.01085]
[1767725679048,0.09228,92224.0,92210.0,0.010849]
[1767725679232,0.09565138,92231.0,92210.0,0.010849]
[1767725679432,0.09228,92230.0,92216.0,0.13267602]
[1767725679636,0.09228,92229.0,92210.0,0.010849]
[1767725679948,0.09228,92229.0,92200.0,0.1284469]
[1767725680337,0.09228,92229.0,92209.0,0.010849]
[1767725680640,0.09228,92229.0,92211.0,0.010849]
[1767725680842,0.09228,92229.0,92208.0,0.010849]
[1767725681436,0.010847,92227.0,92196.0,0.09228]
[1767725681642,0.10649938,92219.0,92197.0,0.09228]
[1767725681844,0.09565138,92219.0,92200.0,0.01085]
[1767725682738,0.09565138,92219.0,92194.0,0.04011939]
[1767725682939,0.09565138,92219.0,92199.0,0.01085]
[1767725683944,0.010848,92218.0,92196.0,0.010851]
[1767725684148,0.09565138,92217.0,92197.0,0.09228]
[1767725684949,0.04030604,92218.0,92189.0,0.04228886]
[1767725684950,0.09565138,92212.0,92189.0,0.04228886]
[1767725685143,0.09565138,92211.0,92189.0,0.00216947]
[1767725685449,0.09565138,92208.0,92189.0,0.01302147]
[1767725685843,0.09228,92218.0,92189.0,0.00216947]
[1767725685844,0.13595742,92206.0,92189.0,0.00216947]
[1767725686160,0.09565138,92197.0,92179.0,0.09228]
[1767725686345,0.09565138,92197.0,92176.0,0.04011939]
[1767725686648,0.09565138,92197.0,92177.0,0.103133]
[1767725686838,0.09565138,92197.0,92179.0,0.010853]
[1767725687247,0.09565138,92197.0,92176.0,0.010853]
[1767725687445,0.09565138,92197.0,92178.0,0.010853]
[1767725687652,0.09565138,92197.0,92177.0,0.09228]
[1767725687850,0.13595742,92195.0,92178.0,0.010853]
[1767725688147,0.09565138,92191.0,92173.0,0.09228]
[1767725689149,0.11500495,92191.0,92173.0,0.09228]
[1767725690953,0.49991642,92424.0,92177.0,0.04011939]
[1767725690954,0.09565138,92228.0,92177.0,0.04011939]
[1767725691251,0.09565138,92223.0,92200.0,0.1284469]
[1767725691449,0.01919064,92228.0,92206.0,0.04011939]
[1767725691645,0.09565138,92238.0,92217.0,0.010848]
[1767725691843,0.20755443,92238.0,92213.0,0.010849]
[1767725692142,0.010847,92233.0,92212.0,0.04011939]
[1767725692752,0.10649838,92233.0,92212.0,0.04011939]
[1767725693456,0.10649838,92233.0,92211.0,0.09228]
[1767725694648,0.09565138,92233.0,92211.0,0.09228]
[1767725695355,0.09565138,92233.0,92211.0,0.094129]
[1767725695748,0.09565138,92233.0,92211.0,0.08328]
[1767725696944,0.10649838,92226.0,92211.0,0.08328]
[1767725697146,0.10649838,92226.0,92205.0,0.09228]
[1767725697147,0.09565138,92222.0,92205.0,0.09228]
[1767725698057,0.09565138,92225.0,92205.0,0.09228]
[1767725698749,0.13595742,92218.0,92198.0,0.010851]
[1767725698951,0.09565138,92216.0,92200.0,0.01085]
[1767725699158,0.09565138,92225.0,92202.0,0.01085]
[1767725699654,0.09565138,92225.0,92204.0,0.01085]
[1767725700550,0.010848,92223.0,92201.0,0.01085]
[1767725700754,0.09565138,92222.0,92201.0,0.01085]
[1767725701851,0.00216876,92219.0,92201.0,0.01085]
[1767725703158,0.00216876,92219.0,92199.0,0.03696939]
[1767725704156,0.00216876,92219.0,92201.0,0.01085]
[1767725705150,0.09488532,92219.0,92199.0,0.03696939]
[1767725705352,0.00216876,92219.0,92200.0,0.03448182]
[1767725705567,0.00216876,92219.0,92201.0,0.03410682]
[1767725706456,0.00216876,92219.0,92201.0,0.00294736]
[1767725707361,0.09488532,92219.0,92200.0,0.10313]
[1767725709763,0.09488532,92219.0,92202.0,0.01085]
[1767725710366,0.09488532,92219.0,92200.0,0.0945096]
[1767725710765,0.09488532,92219.0,92200.0,0.0943596]
[1767725710956,0.09488532,92219.0,92200.0,0.1052096]
[1767725711357,0.09488532,92219.0,92200.0,0.0130796]
[1767725711664,0.09488532,92219.0,92200.0,0.10313]
[1767725711865,0.09488532,92219.0,92201.0,0.01085]
[1767725713262,0.09488532,92219.0,92200.0,0.10313]
[1767725713862,0.09271656,92218.0,92200.0,0.10313]
[1767725716968,0.09271656,92218.0,92201.0,0.01085]
[1767725717374,0.09271656,92218.0,92202.0,0.01085]
[1767725718073,0.09271656,92218.0,92203.0,0.01085]
[1767725718779,0.09271656,92218.0,92200.0,0.09198]
[1767725719567,0.09271656,92218.0,92202.0,0.01085]
[1767725720467,0.09271656,92218.0,92208.0,0.10280192]
[1767725720671,0.10356456,92218.0,92208.0,0.10280192]
[1767725720968,0.09271656,92216.0,92200.0,0.20593192]
[1767725721274,0.09271656,92216.0,92206.0,0.10280192]
[1767725721867,0.09271656,92216.0,92200.0,0.20593192]
[1767725723068,0.00216876,92219.0,92201.0,0.09351266]
[1767725723269,0.00216876,92219.0,92200.0,0.09228]
[1767725723270,0.09271656,92218.0,92209.0,0.10280192]
[1767725723572,0.09271656,92218.0,92208.0,0.10280192]
[1767725723969,0.09271656,92217.0,92208.0,0.10280192]
[1767725724571,0.09271656,92217.0,92203.0,0.01085]
[1767725726273,0.09271656,92207.0,92180.0,0.010853]
[1767725726485,0.09271656,92201.0,92171.0,0.010854]
[1767725726774,0.13092039,92191.0,92157.0,0.010855]
[1767725727075,0.09271656,92187.0,92163.0,0.010855]
[1767725727475,0.09271656,92195.0,92177.0,0.010853]
[1767725727676,0.010851,92194.0,92176.0,0.010853]
[1767725727979,0.09271656,92194.0,92178.0,0.010853]
[1767725728567,0.09271656,92191.0,92175.0,0.09228]
[1767725728772,0.09271656,92190.0,92175.0,0.09228]
[1767725729363,0.09271656,92189.0,92175.0,0.09228]
[1767725730278,0.09271656,92188.0,92173.0,0.09228]
[1767725730475,0.09271656,92188.0,92171.0,0.09228]
[1767725730781,0.09271656,92180.0,92167.0,0.09228]
[1767725731973,0.13061466,92180.0,92157.0,0.01438187]
[1767725732175,0.13061466,92180.0,92133.0,0.02790915]
[1767725732176,0.09361663,92174.0,92158.0,0.09228]
[1767725732781,0.09361663,92174.0,92159.0,0.010855]
[1767725732971,0.09361663,92174.0,92162.0,0.010855]
[1767725733167,0.09361663,92174.0,92158.0,0.09228]
[1767725734080,0.09361663,92174.0,92158.0,0.07828]
[1767725734281,0.09361663,92174.0,92159.0,0.010855]
[1767725734482,0.09361663,92174.0,92157.0,0.09228]
[1767725734782,0.09361663,92174.0,92158.0,0.010855]
[1767725735678,0.13151473,92174.0,92155.0,0.010856]
[1767725735884,0.09361663,92171.0,92156.0,0.09228]
[1767725736274,0.09361663,92170.0,92156.0,0.09228]
[1767725736676,0.09361663,92170.0,92154.0,0.010856]
[1767725736976,0.09361663,92169.0,92155.0,0.09228]
[1767725737484,0.09361663,92169.0,92153.0,9.016e-05]
[1767725737685,0.09361663,92169.0,92154.0,0.103176]
[1767725738384,0.09361663,92169.0,92155.0,0.09232]
[1767725739175,0.09361663,92169.0,92153.0,9.016e-05]
[1767725739381,0.11319773,92169.0,92154.0,0.09232]
[1767725739577,0.09228,92182.0,92161.0,0.00303765]
[1767725739880,0.0378981,92184.0,92161.0,0.00303765]
[1767725740079,0.0378981,92184.0,92162.0,0.010855]
[1767725740284,0.0378981,92182.0,92166.0,0.010854]
[1767725740588,0.0378981,92181.0,92163.0,0.010855]
[1767725740977,0.0378981,92180.0,92161.0,0.09232]
[1767725741477,0.0378981,92180.0,92162.0,0.010855]
[1767725741676,0.13151473,92180.0,92162.0,0.010855]
[1767725741877,0.13151473,92180.0,92161.0,0.09232]
[1767725742285,6.4e-07,92182.0,92179.0,0.010853]
[1767725742483,0.010849,92216.0,92179.0,0.010853]
[1767725742484,0.09361663,92199.0,92179.0,0.00648383]
[1767725742790,0.09361663,92206.0,92192.0,0.010851]
[1767725742986,0.13151473,92203.0,92189.0,0.010852]
[1767725743184,0.0378981,92199.0,92183.0,0.010852]
[1767725743379,0.13151473,92198.0,92183.0,0.010852]
[1767725744084,0.13151473,92198.0,92185.0,0.010852]
[1767725744085,0.09361663,92198.0,92185.0,0.010852]
[1767725744288,0.09361663,92198.0,92187.0,0.010852]
[1767725745184,0.09361663,92198.0,92184.0,0.010852]
[1767725745885,0.09361663,92198.0,92186.0,0.010852]
[1767725747992,0.01967025,92203.0,92193.0,0.010851]
[1767725748291,0.09361663,92212.0,92190.0,0.10370246]
[1767725748479,0.09361663,92212.0,92202.0,0.01085]
[1767725749083,0.0378981,92218.0,92198.0,0.09232]
[1767725749289,0.0378981,92215.0,92198.0,0.09232]
[1767725749482,0.13151473,92211.0,92187.0,0.09775622]
[1767725749684,0.13151473,92211.0,92188.0,0.09232]
[1767725749892,0.13151473,92211.0,92188.0,0.08432]
[1767725750086,0.13151473,92211.0,92198.0,0.010851]
[1767725750293,0.13151473,92211.0,92199.0,0.09232]
[1767725752979,0.02193077,92219.0,92193.0,0.09232]
[1767725752980,0.13151473,92204.0,92193.0,0.09232]
[1767725753184,0.02193077,92219.0,92184.0,0.010852]
[1767725753185,0.09361663,92199.0,92184.0,0.010852]
[1767725753394,0.09361663,92199.0,92186.0,0.010852]
[1767725753891,0.09361663,92199.0,92185.0,0.010852]
[1767725754395,0.09361663,92199.0,92187.0,0.010852]
[1767725754592,0.01085,92207.0,92187.0,0.010852]
[1767725755597,0.010849,92210.0,92184.0,0.03927236]
[1767725755797,0.01085,92208.0,92188.0,0.010852]
[1767725756691,0.13151473,92206.0,92188.0,0.010852]
[1767725757297,0.09361663,92215.0,92193.0,0.13702858]
[1767725757491,0.13151473,92218.0,92196.0,0.03927236]
[1767725757689,0.13151473,92218.0,92199.0,0.01085]
[1767725758001,0.13151473,92216.0,92199.0,0.01085]
[1767725758490,0.13151473,92216.0,92196.0,0.010851]
[1767725758690,0.13151473,92216.0,92198.0,0.010851]
[1767725758890,0.13151473,92215.0,92198.0,0.010851]
[1767725760187,0.11421077,92219.0,92197.0,0.14160595]
[1767725760383,0.02193077,92219.0,92200.0,0.04179365]
[1767725760588,0.02193077,92219.0,92206.0,0.01085]
[1767725760787,0.02193077,92219.0,92208.0,0.010849]
[1767725761213,0.16272019,92219.0,92203.0,0.09228]
[1767725761395,0.09623553,92210.0,92190.0,0.010851]
[1767725761697,0.09623553,92210.0,92192.0,0.010851]
[1767725761698,0.09623553,92209.0,92192.0,0.010851]
[1767725762192,0.09623553,92203.0,92193.0,0.09228]
[1767725762387,0.09623553,92213.0,92194.0,0.103131]
[1767725763087,0.09623553,92211.0,92194.0,0.103131]
[1767725763290,0.13858587,92210.0,92194.0,0.103131]
[1767725763488,0.02193077,92219.0,92190.0,0.010852]
[1767725763489,0.13858587,92203.0,92190.0,0.010852]
[1767725763692,0.13858587,92203.0,92191.0,0.09228]
[1767725764095,0.13858587,92203.0,92192.0,0.010851]
[1767725764693,0.13858587,92203.0,92191.0,0.09228]
[1767725765089,0.13858587,92203.0,92186.0,0.010852]
[1767725765299,0.13858587,92197.0,92186.0,0.08228]
[1767725765692,0.09623553,92197.0,92186.0,0.08228]
[1767725765999,0.04235034,92202.0,92186.0,0.08228]
[1767725766187,0.04235034,92202.0,92187.0,0.010852]
[1767725766391,0.04235034,92202.0,92192.0,0.010851]
[1767725766793,0.04235034,92202.0,92189.0,0.010852]
[1767725767601,0.01085,92201.0,92186.0,0.08228]
[1767725767897,0.13858587,92200.0,92186.0,0.08228]
[1767725768404,0.13858587,92200.0,92187.0,0.010852]
[1767725768994,0.13858587,92199.0,92187.0,0.010852]
[1767725769306,0.13858587,92196.0,92186.0,0.08228]
[1767725769500,0.09623553,92195.0,92184.0,0.09228]
[1767725770504,0.09623553,92195.0,92171.0,0.09367285]
[1767725770505,0.09623553,92192.0,92171.0,0.09367285]
[1767725770696,0.09623553,92192.0,92172.0,0.09228]
[1767725771094,0.04235034,92189.0,92176.0,0.010853]
[1767725771300,0.13858587,92188.0,92176.0,0.103133]
[1767725771603,0.09623553,92188.0,92176.0,0.09228]
[1767725771906,0.010851,92192.0,92176.0,0.09228]
[1767725772406,0.04235034,92193.0,92176.0,0.09228]
[1767725773308,0.010848,92220.0,92176.0,0.09228]
[1767725773309,0.04235034,92222.0,92188.0,0.09367285]
[1767725773494,0.04235034,92222.0,92208.0,0.010849]
[1767725773703,0.18851553,92223.0,92212.0,0.010849]
[1767725774008,0.20807771,92223.0,92209.0,0.010849]
[1767725774205,0.20807771,92223.0,92205.0,0.01085]
[1767725774395,0.04235034,92222.0,92199.0,0.09367285]
[1767725774599,0.11184218,92223.0,92199.0,0.09228]
[1767725774600,0.14943487,92208.0,92199.0,0.09228]
[1767725774892,0.09623553,92215.0,92194.0,0.09228]
[1767725775096,0.05319834,92217.0,92196.0,0.10452385]
[1767725775500,0.010849,92212.0,92196.0,0.09367285]
[1767725775701,0.010849,92213.0,92196.0,0.09367285]
[1767725776102,0.010849,92213.0,92194.0,0.09228]
[1767725776303,0.05319934,92216.0,92194.0,0.09228]
[1767725776912,0.15419252,92223.0,92198.0,0.09367285]
[1767725777114,0.010848,92219.0,92199.0,0.01085]